[Event "Early-Titled-Tuesday-Blitz-June-18-2024"]
[Site "Chess.com"]
[Date "2024.06.18"]
[Round "11"]
[White "Fh2411"]
[Black "Anton_Demchenko"]
[Result "0-1"]
[WhiteElo "2575"]
[BlackElo "2956"]
[TimeControl "180+1"]
[EndTime "10:07:04 PDT"]
[Termination "Anton_Demchenko won by resignation"]

1. d4 {[%clk 0:03:00.9]} 1... Nf6 {[%clk 0:02:59.7]} 2. Nf3 {[%clk 0:03:01.3]}
2... d6 {[%clk 0:02:57]} 3. c4 {[%clk 0:02:57]} 3... Nc6 {[%clk 0:02:56.5]} 4.
Nc3 {[%clk 0:02:53.6]} 4... e5 {[%clk 0:02:56.5]} 5. dxe5 {[%clk 0:02:50.8]}
5... dxe5 {[%clk 0:02:57.4]} 6. Qxd8+ {[%clk 0:02:50.8]} 6... Kxd8 {[%clk
0:02:57.6]} 7. Bg5 {[%clk 0:02:51]} 7... Be6 {[%clk 0:02:57.9]} 8. O-O-O+ {[%clk
0:02:47.1]} 8... Kc8 {[%clk 0:02:58.2]} 9. Bxf6 {[%clk 0:02:43.1]} 9... gxf6
{[%clk 0:02:58.3]} 10. e3 {[%clk 0:02:43.5]} 10... Nb8 {[%clk 0:02:57.8]} 11.
Bd3 {[%clk 0:02:32.6]} 11... Nd7 {[%clk 0:02:57.7]} 12. Nh4 {[%clk 0:02:16.2]}
12... Nc5 {[%clk 0:02:45.5]} 13. Bf5 {[%clk 0:02:15.8]} 13... c6 {[%clk
0:02:37.1]} 14. Kc2 {[%clk 0:02:10.8]} 14... Kc7 {[%clk 0:02:36.4]} 15. b3
{[%clk 0:02:09.9]} 15... a5 {[%clk 0:02:35.4]} 16. Bxe6 {[%clk 0:01:36.3]} 16...
fxe6 {[%clk 0:02:35.3]} 17. Nf3 {[%clk 0:01:36.6]} 17... Be7 {[%clk 0:02:25.8]}
18. Nd2 {[%clk 0:01:29.3]} 18... f5 {[%clk 0:02:23.9]} 19. e4 {[%clk 0:01:25.4]}
19... Rhg8 {[%clk 0:02:17.2]} 20. g3 {[%clk 0:01:25.2]} 20... Raf8 {[%clk
0:02:15]} 21. Rhf1 {[%clk 0:01:22.9]} 21... h5 {[%clk 0:02:13]} 22. exf5 {[%clk
0:01:04]} 22... exf5 {[%clk 0:02:12.7]} 23. Nf3 {[%clk 0:00:57.9]} 23... Bf6
{[%clk 0:02:07.7]} 24. Rfe1 {[%clk 0:00:50.5]} 24... Re8 {[%clk 0:02:06.8]} 25.
a3 {[%clk 0:00:43.9]} 25... e4 {[%clk 0:02:02]} 26. Nd4 {[%clk 0:00:43.8]} 26...
Nd3 {[%clk 0:02:00.3]} 27. Nxf5 {[%clk 0:00:39.4]} 27... Nxe1+ {[%clk
0:02:00.5]} 28. Rxe1 {[%clk 0:00:40.3]} 28... Bxc3 {[%clk 0:01:56.8]} 29. Kxc3
{[%clk 0:00:41.2]} 29... Rgf8 {[%clk 0:01:56.9]} 30. Nd4 {[%clk 0:00:26.6]}
30... Rxf2 {[%clk 0:01:53.1]} 31. h4 {[%clk 0:00:23.5]} 31... Kd6 {[%clk
0:01:36.8]} 32. b4 {[%clk 0:00:21.6]} 32... axb4+ {[%clk 0:01:35.5]} 33. axb4
{[%clk 0:00:22.5]} 33... Ke5 {[%clk 0:01:33.3]} 34. Ra1 {[%clk 0:00:09.9]} 34...
e3 {[%clk 0:01:17.7]} 35. Kd3 {[%clk 0:00:06.5]} 35... Rd2+ {[%clk 0:01:14.7]}
36. Kxe3 {[%clk 0:00:04.9]} 36... Rxd4 {[%clk 0:01:15.4]} 37. Ra5+ {[%clk
0:00:04.7]} 37... b5 {[%clk 0:01:16]} 0-1

[Event "Early-Titled-Tuesday-Blitz-June-18-2024"]
[Site "Chess.com"]
[Date "2024.06.18"]
[Round "11"]
[White "Weifd"]
[Black "Chernov_Alexander_A"]
[Result "1-0"]
[WhiteElo "2374"]
[BlackElo "2291"]
[TimeControl "180+1"]
[EndTime "10:07:04 PDT"]
[Termination "Weifd won by resignation"]

1. e4 {[%clk 0:02:59.3]} 1... e5 {[%clk 0:02:59.4]} 2. Nf3 {[%clk 0:02:59.4]}
2... Nc6 {[%clk 0:02:59.5]} 3. Bc4 {[%clk 0:03:00]} 3... Bc5 {[%clk 0:02:59.1]}
4. c3 {[%clk 0:03:00]} 4... Qe7 {[%clk 0:02:59]} 5. O-O {[%clk 0:02:59]} 5... d6
{[%clk 0:02:58.6]} 6. d3 {[%clk 0:02:54.2]} 6... Nf6 {[%clk 0:02:58.2]} 7. Nbd2
{[%clk 0:02:53.2]} 7... a6 {[%clk 0:02:56.8]} 8. Re1 {[%clk 0:02:53.1]} 8... Ba7
{[%clk 0:02:56.3]} 9. Nf1 {[%clk 0:02:52.7]} 9... h6 {[%clk 0:02:45.9]} 10. Be3
{[%clk 0:02:51.4]} 10... O-O {[%clk 0:02:38.9]} 11. h3 {[%clk 0:02:49.8]} 11...
Kh8 {[%clk 0:02:36.8]} 12. Ng3 {[%clk 0:02:47.9]} 12... Bxe3 {[%clk 0:02:25.2]}
13. Rxe3 {[%clk 0:02:44.6]} 13... Na5 {[%clk 0:02:23]} 14. Bb3 {[%clk
0:02:40.7]} 14... Nxb3 {[%clk 0:02:22.2]} 15. axb3 {[%clk 0:02:41.4]} 15... Bd7
{[%clk 0:02:13.7]} 16. d4 {[%clk 0:02:39.8]} 16... Rad8 {[%clk 0:02:11.4]} 17.
Nh4 {[%clk 0:02:37.3]} 17... g6 {[%clk 0:02:09.4]} 18. Qe2 {[%clk 0:02:28.5]}
18... Kh7 {[%clk 0:02:07.2]} 19. Rf1 {[%clk 0:02:23.1]} 19... Ng8 {[%clk
0:01:54.9]} 20. Nf3 {[%clk 0:02:12.6]} 20... Bb5 {[%clk 0:01:33.9]} 21. c4
{[%clk 0:02:11.7]} 21... Bd7 {[%clk 0:01:33.8]} 22. dxe5 {[%clk 0:01:59.7]}
22... dxe5 {[%clk 0:01:33.2]} 23. Ne1 {[%clk 0:02:00.4]} 23... Be6 {[%clk
0:01:24.7]} 24. Nd3 {[%clk 0:01:58.6]} 24... f6 {[%clk 0:01:22.6]} 25. f4 {[%clk
0:01:57.6]} 25... exf4 {[%clk 0:01:22.1]} 26. Nxf4 {[%clk 0:01:56.7]} 26... Bf7
{[%clk 0:01:20.5]} 27. e5 {[%clk 0:01:52.5]} 27... Rfe8 {[%clk 0:01:19.6]} 28.
Re1 {[%clk 0:01:49.4]} 28... fxe5 {[%clk 0:01:17.6]} 29. Rxe5 {[%clk 0:01:49]}
29... Qf8 {[%clk 0:01:07.3]} 30. Qf3 {[%clk 0:01:36.7]} 30... c6 {[%clk
0:00:55.9]} 31. h4 {[%clk 0:01:26.9]} 31... Rxe5 {[%clk 0:00:53.7]} 32. Rxe5
{[%clk 0:01:26.2]} 32... Re8 {[%clk 0:00:45.7]} 33. Rxe8 {[%clk 0:01:17.1]}
33... Qxe8 {[%clk 0:00:45.5]} 34. h5 {[%clk 0:01:17.8]} 34... Qe5 {[%clk
0:00:36.7]} 35. hxg6+ {[%clk 0:01:14.3]} 35... Bxg6 {[%clk 0:00:36.5]} 36. Nxg6
{[%clk 0:01:14]} 36... Kxg6 {[%clk 0:00:36.6]} 37. Qg4+ {[%clk 0:01:14.5]} 37...
Qg5 {[%clk 0:00:31.2]} 38. Qe6+ {[%clk 0:01:13.4]} 38... Qf6 {[%clk 0:00:27.4]}
39. Qxg8+ {[%clk 0:01:12]} 1-0

[Event "Early-Titled-Tuesday-Blitz-June-18-2024"]
[Site "Chess.com"]
[Date "2024.06.18"]
[Round "11"]
[White "AttilaTurzo"]
[Black "Korchmar_Vasiliy"]
[Result "1-0"]
[WhiteElo "2479"]
[BlackElo "2642"]
[TimeControl "180+1"]
[EndTime "10:07:12 PDT"]
[Termination "AttilaTurzo won by resignation"]

1. d4 {[%clk 0:03:00.9]} 1... Nf6 {[%clk 0:02:59.2]} 2. c4 {[%clk 0:03:00.3]}
2... g6 {[%clk 0:02:59.6]} 3. Nc3 {[%clk 0:02:58.7]} 3... d5 {[%clk 0:03:00.2]}
4. Nf3 {[%clk 0:02:58.2]} 4... Bg7 {[%clk 0:02:59.4]} 5. Qb3 {[%clk 0:02:57.6]}
5... dxc4 {[%clk 0:02:52.9]} 6. Qxc4 {[%clk 0:02:58.5]} 6... Be6 {[%clk
0:02:53.3]} 7. Qb5+ {[%clk 0:02:42.7]} 7... Nc6 {[%clk 0:02:53.1]} 8. Qxb7
{[%clk 0:02:39.1]} 8... Bd7 {[%clk 0:02:53.4]} 9. e4 {[%clk 0:02:15.6]} 9... Rb8
{[%clk 0:02:52.7]} 10. Qa6 {[%clk 0:02:15.2]} 10... Nb4 {[%clk 0:02:53.2]} 11.
Qe2 {[%clk 0:02:14.3]} 11... Bg4 {[%clk 0:02:53]} 12. Be3 {[%clk 0:01:42.3]}
12... Bxf3 {[%clk 0:02:52.8]} 13. gxf3 {[%clk 0:01:39.7]} 13... c5 {[%clk
0:02:53.4]} 14. O-O-O {[%clk 0:01:36.8]} 14... Qa5 {[%clk 0:02:50.9]} 15. a3
{[%clk 0:01:26.7]} 15... O-O {[%clk 0:02:35.1]} 16. dxc5 {[%clk 0:01:11.1]}
16... Nxe4 {[%clk 0:02:23.2]} 17. Nxe4 {[%clk 0:00:57.5]} 17... Na2+ {[%clk
0:02:22.2]} 18. Kb1 {[%clk 0:00:55.1]} 18... Qxa3 {[%clk 0:00:35.7]} 19. Bd4
{[%clk 0:00:43.1]} 19... Rfd8 {[%clk 0:00:26.4]} 20. Bxg7 {[%clk 0:00:42.7]}
20... Rxd1+ {[%clk 0:00:14]} 21. Qxd1 {[%clk 0:00:43.6]} 21... Kxg7 {[%clk
0:00:14.4]} 22. Qd4+ {[%clk 0:00:37.9]} 22... Kg8 {[%clk 0:00:14.5]} 23. Bc4
{[%clk 0:00:34.2]} 23... Qa4 {[%clk 0:00:01.6]} 24. Bxf7+ {[%clk 0:00:32.5]}
24... Kxf7 {[%clk 0:00:02.5]} 25. Qxa4 {[%clk 0:00:32]} 1-0

[Event "Early-Titled-Tuesday-Blitz-June-18-2024"]
[Site "Chess.com"]
[Date "2024.06.18"]
[Round "11"]
[White "luckyswitchback"]
[Black "Alphafischer2019"]
[Result "1-0"]
[WhiteElo "2861"]
[BlackElo "2657"]
[TimeControl "180+1"]
[EndTime "10:07:13 PDT"]
[Termination "luckyswitchback won by resignation"]

1. e4 {[%clk 0:02:59.2]} 1... e6 {[%clk 0:02:59.6]} 2. d4 {[%clk 0:02:59.1]}
2... d5 {[%clk 0:03:00.2]} 3. Nd2 {[%clk 0:02:59.8]} 3... dxe4 {[%clk
0:03:00.4]} 4. Nxe4 {[%clk 0:03:00.2]} 4... Nd7 {[%clk 0:03:01.3]} 5. g3 {[%clk
0:03:00.2]} 5... b6 {[%clk 0:02:59.8]} 6. Bg2 {[%clk 0:02:59.7]} 6... Rb8 {[%clk
0:03:00]} 7. Ne2 {[%clk 0:02:55.7]} 7... Ngf6 {[%clk 0:02:58.6]} 8. Nxf6+ {[%clk
0:02:53.1]} 8... Nxf6 {[%clk 0:02:58.5]} 9. O-O {[%clk 0:02:49.2]} 9... Be7
{[%clk 0:02:58.6]} 10. c4 {[%clk 0:02:43.6]} 10... O-O {[%clk 0:02:56.7]} 11.
Re1 {[%clk 0:02:42.4]} 11... c5 {[%clk 0:02:54.6]} 12. Bf4 {[%clk 0:02:36.9]}
12... Rb7 {[%clk 0:02:41.7]} 13. Bxb7 {[%clk 0:02:33.4]} 13... Bxb7 {[%clk
0:02:42.6]} 14. dxc5 {[%clk 0:02:18.3]} 14... Qc8 {[%clk 0:02:42.4]} 15. Nd4
{[%clk 0:01:51.4]} 15... Bxc5 {[%clk 0:02:07.3]} 16. Be5 {[%clk 0:01:27]} 16...
Rd8 {[%clk 0:01:59.4]} 17. Bxf6 {[%clk 0:01:24.1]} 17... gxf6 {[%clk 0:01:57.4]}
18. Qg4+ {[%clk 0:01:23.8]} 18... Kf8 {[%clk 0:01:09.6]} 19. Rad1 {[%clk
0:01:24.7]} 19... Rxd4 {[%clk 0:00:17.9]} 20. Rxd4 {[%clk 0:01:24.5]} 20... Qc6
{[%clk 0:00:18.5]} 21. Kf1 {[%clk 0:01:05.2]} 21... f5 {[%clk 0:00:05.7]} 22.
Rd8+ {[%clk 0:00:49.5]} 22... Ke7 {[%clk 0:00:05.5]} 23. Qh4+ {[%clk 0:00:49.1]}
23... f6 {[%clk 0:00:06]} 24. Rd5 {[%clk 0:00:49]} 24... Qa4 {[%clk 0:00:02.1]}
25. Qxh7+ {[%clk 0:00:46.1]} 25... Ke8 {[%clk 0:00:02.8]} 26. Rxe6+ {[%clk
0:00:39.9]} 1-0

[Event "Early-Titled-Tuesday-Blitz-June-18-2024"]
[Site "Chess.com"]
[Date "2024.06.18"]
[Round "11"]
[White "RantomOpening"]
[Black "Acva-Alenok"]
[Result "1-0"]
[WhiteElo "2601"]
[BlackElo "2384"]
[TimeControl "180+1"]
[EndTime "10:07:14 PDT"]
[Termination "RantomOpening won by resignation"]

1. e4 {[%clk 0:03:00.9]} 1... c6 {[%clk 0:02:59.7]} 2. d4 {[%clk 0:03:00.3]}
2... d5 {[%clk 0:03:00.2]} 3. Nc3 {[%clk 0:03:01.2]} 3... dxe4 {[%clk
0:03:00.3]} 4. Nxe4 {[%clk 0:03:02]} 4... Bf5 {[%clk 0:03:00.7]} 5. Qf3 {[%clk
0:03:01]} 5... Bxe4 {[%clk 0:02:45.2]} 6. Qxe4 {[%clk 0:03:01.8]} 6... Nf6
{[%clk 0:02:45.6]} 7. Qd3 {[%clk 0:03:01.9]} 7... g6 {[%clk 0:02:34.3]} 8. Nf3
{[%clk 0:03:02.3]} 8... Bg7 {[%clk 0:02:33.9]} 9. g3 {[%clk 0:03:03.2]} 9... O-O
{[%clk 0:02:31]} 10. Bg2 {[%clk 0:03:03.5]} 10... Na6 {[%clk 0:02:18.5]} 11. c3
{[%clk 0:02:55.3]} 11... Qb6 {[%clk 0:01:53]} 12. O-O {[%clk 0:02:52.8]} 12...
Rad8 {[%clk 0:01:45.2]} 13. b3 {[%clk 0:02:48.3]} 13... c5 {[%clk 0:01:40.3]}
14. Be3 {[%clk 0:02:47.3]} 14... Nd5 {[%clk 0:01:35.6]} 15. Bd2 {[%clk
0:02:43.1]} 15... cxd4 {[%clk 0:01:12.3]} 16. cxd4 {[%clk 0:02:44]} 16... Nab4
{[%clk 0:01:08.5]} 17. Qe4 {[%clk 0:02:33.2]} 17... e6 {[%clk 0:01:00.2]} 18.
Bg5 {[%clk 0:02:27.7]} 18... Rc8 {[%clk 0:00:57.5]} 19. a3 {[%clk 0:02:18]}
19... Nc2 {[%clk 0:00:53.1]} 20. Rac1 {[%clk 0:02:15.8]} 20... Nxd4 {[%clk
0:00:46.8]} 21. Nxd4 {[%clk 0:02:14.7]} 21... Bxd4 {[%clk 0:00:44.8]} 22. Rcd1
{[%clk 0:02:09.4]} 22... Bg7 {[%clk 0:00:38.6]} 23. Qh4 {[%clk 0:02:06]} 23...
Qxb3 {[%clk 0:00:35.5]} 24. Rb1 {[%clk 0:02:02.9]} 24... Qc4 {[%clk 0:00:24.1]}
25. Qh3 {[%clk 0:01:56]} 25... b5 {[%clk 0:00:19.4]} 26. Rfc1 {[%clk 0:01:55]}
26... Qa4 {[%clk 0:00:18.8]} 27. Rxc8 {[%clk 0:01:50.9]} 27... Rxc8 {[%clk
0:00:19.3]} 28. Bxd5 {[%clk 0:01:51.4]} 28... Qc2 {[%clk 0:00:14.5]} 29. Rc1
{[%clk 0:01:49]} 29... Qxc1+ {[%clk 0:00:14.8]} 30. Bxc1 {[%clk 0:01:49.9]}
30... Rxc1+ {[%clk 0:00:15.3]} 31. Kg2 {[%clk 0:01:50.6]} 31... exd5 {[%clk
0:00:15.6]} 32. Qd7 {[%clk 0:01:50.9]} 32... Rd1 {[%clk 0:00:06.1]} 33. Qxa7
{[%clk 0:01:41.6]} 33... Bf8 {[%clk 0:00:06.7]} 34. Qb7 {[%clk 0:01:39.9]} 34...
Rd3 {[%clk 0:00:04.8]} 35. Qxb5 {[%clk 0:01:38.1]} 35... Rxa3 {[%clk 0:00:05.3]}
36. Qxd5 {[%clk 0:01:38.2]} 36... Ra6 {[%clk 0:00:05.6]} 37. Qb7 {[%clk
0:01:35.9]} 37... Rf6 {[%clk 0:00:04.9]} 38. Qb2 {[%clk 0:01:34.6]} 38... Bg7
{[%clk 0:00:03.8]} 39. Qb8+ {[%clk 0:01:30.2]} 39... Bf8 {[%clk 0:00:03.7]} 40.
Qc7 {[%clk 0:01:30.7]} 40... h5 {[%clk 0:00:01.6]} 41. h3 {[%clk 0:01:29.7]}
41... Bg7 {[%clk 0:00:02]} 42. Qd8+ {[%clk 0:01:29.1]} 42... Bf8 {[%clk
0:00:02.5]} 43. Qxf6 {[%clk 0:01:28.5]} 1-0

[Event "Early-Titled-Tuesday-Blitz-June-18-2024"]
[Site "Chess.com"]
[Date "2024.06.18"]
[Round "11"]
[White "unbreakablepawn35"]
[Black "BM223344"]
[Result "1-0"]
[WhiteElo "2428"]
[BlackElo "2560"]
[TimeControl "180+1"]
[EndTime "10:07:19 PDT"]
[Termination "unbreakablepawn35 won by resignation"]

1. c4 {[%clk 0:03:00.9]} 1... Nf6 {[%clk 0:02:57.6]} 2. Nc3 {[%clk 0:03:00.9]}
2... g6 {[%clk 0:02:58.3]} 3. d4 {[%clk 0:03:00.5]} 3... d6 {[%clk 0:02:58.6]}
4. e4 {[%clk 0:03:00.7]} 4... Bg7 {[%clk 0:02:59.3]} 5. Be2 {[%clk 0:03:01.1]}
5... O-O {[%clk 0:02:58.8]} 6. Nf3 {[%clk 0:03:01.5]} 6... Nbd7 {[%clk
0:02:57.8]} 7. O-O {[%clk 0:03:00.6]} 7... e5 {[%clk 0:02:57.6]} 8. h3 {[%clk
0:02:57.2]} 8... c6 {[%clk 0:02:51.1]} 9. Be3 {[%clk 0:02:56.5]} 9... Qe7 {[%clk
0:02:50.7]} 10. Qd2 {[%clk 0:02:55.9]} 10... exd4 {[%clk 0:02:38.3]} 11. Bxd4
{[%clk 0:02:51.7]} 11... Rd8 {[%clk 0:02:28]} 12. Bd3 {[%clk 0:02:40.1]} 12...
Nf8 {[%clk 0:02:20.6]} 13. Rfe1 {[%clk 0:02:38.7]} 13... Ne6 {[%clk 0:02:21.2]}
14. Be3 {[%clk 0:02:38.1]} 14... Nd7 {[%clk 0:02:10.4]} 15. Rad1 {[%clk
0:02:37.6]} 15... Ne5 {[%clk 0:02:09.5]} 16. Be2 {[%clk 0:02:25.6]} 16... b6
{[%clk 0:02:03.7]} 17. Bh6 {[%clk 0:02:21.2]} 17... Ba6 {[%clk 0:01:55.2]} 18.
b3 {[%clk 0:02:07.5]} 18... Qf6 {[%clk 0:01:34.6]} 19. Bxg7 {[%clk 0:01:48.3]}
19... Kxg7 {[%clk 0:01:33.5]} 20. Nd4 {[%clk 0:01:42.6]} 20... Nf4 {[%clk
0:01:19.2]} 21. Bf1 {[%clk 0:01:42.2]} 21... Qg5 {[%clk 0:01:02]} 22. g3 {[%clk
0:01:26.7]} 22... Nxh3+ {[%clk 0:01:01.3]} 23. Bxh3 {[%clk 0:01:23.8]} 23... Qh5
{[%clk 0:00:56.6]} 24. Bg2 {[%clk 0:01:08.8]} 24... Ng4 {[%clk 0:00:46.6]} 25.
Nf3 {[%clk 0:01:08.4]} 25... h6 {[%clk 0:00:40.4]} 26. Ne2 {[%clk 0:00:59.9]}
26... g5 {[%clk 0:00:31.9]} 27. Ned4 {[%clk 0:00:59.6]} 27... Bb7 {[%clk
0:00:22.7]} 28. Nf5+ {[%clk 0:00:59.4]} 28... Kg8 {[%clk 0:00:23.2]} 29. Qc3
{[%clk 0:00:56.3]} 29... f6 {[%clk 0:00:23.5]} 30. Nxd6 {[%clk 0:00:33.8]} 30...
Ba6 {[%clk 0:00:20]} 31. Nf5 {[%clk 0:00:33]} 31... Qf7 {[%clk 0:00:17.8]} 32.
Bh3 {[%clk 0:00:32.3]} 32... Qh5 {[%clk 0:00:15.6]} 33. Bxg4 {[%clk 0:00:32.5]}
33... Qxg4 {[%clk 0:00:16.5]} 34. Nxh6+ {[%clk 0:00:32.6]} 34... Kg7 {[%clk
0:00:15.9]} 35. Nxg4 {[%clk 0:00:33.5]} 1-0

[Event "Early-Titled-Tuesday-Blitz-June-18-2024"]
[Site "Chess.com"]
[Date "2024.06.18"]
[Round "11"]
[White "VerdeNotte"]
[Black "kleinebeer98"]
[Result "0-1"]
[WhiteElo "2870"]
[BlackElo "2978"]
[TimeControl "180+1"]
[EndTime "10:07:23 PDT"]
[Termination "kleinebeer98 won by checkmate"]

1. Nf3 {[%clk 0:02:59.3]} 1... Nc6 {[%clk 0:02:59]} 2. d4 {[%clk 0:02:56.5]}
2... d5 {[%clk 0:02:58.5]} 3. c4 {[%clk 0:02:56.5]} 3... Bg4 {[%clk 0:02:58.7]}
4. cxd5 {[%clk 0:02:56.2]} 4... Bxf3 {[%clk 0:02:59.4]} 5. gxf3 {[%clk
0:02:56.5]} 5... Qxd5 {[%clk 0:02:59.6]} 6. e3 {[%clk 0:02:57.1]} 6... e5 {[%clk
0:02:59.4]} 7. Nc3 {[%clk 0:02:57.5]} 7... Bb4 {[%clk 0:03:00]} 8. Bd2 {[%clk
0:02:57.8]} 8... Bxc3 {[%clk 0:03:00.3]} 9. bxc3 {[%clk 0:02:58.3]} 9... Qd6
{[%clk 0:03:00.7]} 10. Qb3 {[%clk 0:02:55.3]} 10... O-O-O {[%clk 0:03:01.1]} 11.
Rb1 {[%clk 0:02:54.2]} 11... b6 {[%clk 0:03:01.1]} 12. Qxf7 {[%clk 0:02:33.6]}
12... Nge7 {[%clk 0:03:01.5]} 13. Be2 {[%clk 0:02:31.1]} 13... Rhf8 {[%clk
0:02:57.6]} 14. Qxg7 {[%clk 0:02:29.7]} 14... Kb8 {[%clk 0:02:55.7]} 15. Rd1
{[%clk 0:02:20.9]} 15... h5 {[%clk 0:02:50.7]} 16. Qg5 {[%clk 0:02:10]} 16...
Rde8 {[%clk 0:02:43.2]} 17. dxe5 {[%clk 0:02:03.1]} 17... Nxe5 {[%clk
0:02:38.8]} 18. Bc1 {[%clk 0:01:59]} 18... Qc5 {[%clk 0:02:24.9]} 19. f4 {[%clk
0:01:28.9]} 19... Qc6 {[%clk 0:02:14.3]} 20. Rf1 {[%clk 0:01:19]} 20... Qxc3+
{[%clk 0:02:10.7]} 21. Bd2 {[%clk 0:01:18.9]} 21... Nd3+ {[%clk 0:02:11]} 22.
Bxd3 {[%clk 0:01:19]} 22... Qxd3 {[%clk 0:02:11.9]} 23. Bb4 {[%clk 0:01:14.3]}
23... Qe4 {[%clk 0:02:07.7]} 24. Bxe7 {[%clk 0:01:04.6]} 24... Rxe7 {[%clk
0:02:08.6]} 25. a3 {[%clk 0:00:49.2]} 25... Rfe8 {[%clk 0:01:55.6]} 26. Qd5
{[%clk 0:00:14.9]} 26... Qxf4 {[%clk 0:01:55.9]} 27. Rd3 {[%clk 0:00:14.4]}
27... Qxh2 {[%clk 0:01:47.1]} 28. Rh1 {[%clk 0:00:14.1]} 28... Qf4 {[%clk
0:01:44.4]} 29. Rxh5 {[%clk 0:00:12.6]} 29... Qg4 {[%clk 0:01:40.9]} 30. Rg5
{[%clk 0:00:10.3]} 30... Qh4 {[%clk 0:01:41.5]} 31. Rg8 {[%clk 0:00:09.7]} 31...
a5 {[%clk 0:01:29.1]} 32. Ke2 {[%clk 0:00:08.4]} 32... Qa4 {[%clk 0:01:23]} 33.
Rxe8+ {[%clk 0:00:07.6]} 33... Rxe8 {[%clk 0:01:23.9]} 34. Kd2 {[%clk
0:00:04.4]} 34... Qh4 {[%clk 0:01:20.2]} 35. Qf7 {[%clk 0:00:04.3]} 35... Qh8
{[%clk 0:01:18.4]} 36. Rd4 {[%clk 0:00:04.1]} 36... Rf8 {[%clk 0:01:18.3]} 37.
Qd5 {[%clk 0:00:02.6]} 37... Rxf2+ {[%clk 0:01:19]} 38. Kd3 {[%clk 0:00:02.8]}
38... Rf8 {[%clk 0:01:16.2]} 39. Ke2 {[%clk 0:00:01]} 39... Qh2+ {[%clk
0:01:15.8]} 40. Kd3 {[%clk 0:00:01.5]} 40... Qb2 {[%clk 0:01:16.1]} 41. Qc4
{[%clk 0:00:01.1]} 41... Qxa3+ {[%clk 0:01:15.4]} 42. Qc3 {[%clk 0:00:01.6]}
42... Qe7 {[%clk 0:01:15.3]} 43. Re4 {[%clk 0:00:01.5]} 43... Qh7 {[%clk
0:01:14.7]} 44. Qe5 {[%clk 0:00:01.6]} 44... Rf5 {[%clk 0:01:09.2]} 45. Qe8+
{[%clk 0:00:01.5]} 45... Kb7 {[%clk 0:01:10]} 46. Kc2 {[%clk 0:00:01.8]} 46...
Rc5+ {[%clk 0:01:09.9]} 47. Kd2 {[%clk 0:00:02.3]} 47... Qh2+ {[%clk 0:01:10.1]}
48. Kd3 {[%clk 0:00:02.9]} 48... Qc2+ {[%clk 0:01:10.8]} 49. Kd4 {[%clk
0:00:02.8]} 49... Qc3# {[%clk 0:01:11.7]} 0-1

[Event "Early-Titled-Tuesday-Blitz-June-18-2024"]
[Site "Chess.com"]
[Date "2024.06.18"]
[Round "11"]
[White "GelmanAlexander"]
[Black "EdenDzung06"]
[Result "1-0"]
[WhiteElo "2662"]
[BlackElo "2458"]
[TimeControl "180+1"]
[EndTime "10:07:24 PDT"]
[Termination "GelmanAlexander won by resignation"]

1. c4 {[%clk 0:02:55.4]} 1... Nf6 {[%clk 0:02:58.2]} 2. e3 {[%clk 0:02:54.4]}
2... b6 {[%clk 0:02:58]} 3. Nf3 {[%clk 0:02:54.1]} 3... Bb7 {[%clk 0:02:58.3]}
4. Be2 {[%clk 0:02:54.5]} 4... e6 {[%clk 0:02:58.8]} 5. d3 {[%clk 0:02:55]} 5...
Be7 {[%clk 0:02:59.3]} 6. b3 {[%clk 0:02:55.3]} 6... O-O {[%clk 0:02:59.9]} 7.
Bb2 {[%clk 0:02:56]} 7... d5 {[%clk 0:02:59.7]} 8. Nbd2 {[%clk 0:02:56.5]} 8...
c5 {[%clk 0:03:00.4]} 9. a3 {[%clk 0:02:57]} 9... Nbd7 {[%clk 0:02:58.2]} 10.
Qc2 {[%clk 0:02:56.4]} 10... Rc8 {[%clk 0:02:58.3]} 11. Rg1 {[%clk 0:02:52.1]}
11... Ne8 {[%clk 0:02:52.4]} 12. g4 {[%clk 0:02:52]} 12... Bf6 {[%clk
0:02:52.9]} 13. g5 {[%clk 0:02:52.6]} 13... Bxb2 {[%clk 0:02:51.5]} 14. Qxb2
{[%clk 0:02:53.5]} 14... Qe7 {[%clk 0:02:46.6]} 15. h4 {[%clk 0:02:54]} 15... e5
{[%clk 0:02:46.8]} 16. cxd5 {[%clk 0:02:49.5]} 16... Bxd5 {[%clk 0:02:44.8]} 17.
h5 {[%clk 0:02:50.4]} 17... f6 {[%clk 0:02:25.1]} 18. gxf6 {[%clk 0:02:31.4]}
18... Nexf6 {[%clk 0:02:20.3]} 19. h6 {[%clk 0:02:31]} 19... g6 {[%clk
0:02:18.4]} 20. Ng5 {[%clk 0:02:21.4]} 20... b5 {[%clk 0:01:53.3]} 21. Rc1
{[%clk 0:02:20.3]} 21... Nb6 {[%clk 0:01:43.4]} 22. Ngf3 {[%clk 0:02:07.6]}
22... e4 {[%clk 0:01:41.4]} 23. dxe4 {[%clk 0:02:06.4]} 23... Bxe4 {[%clk
0:01:34.3]} 24. Bxb5 {[%clk 0:02:03.7]} 24... Bxf3 {[%clk 0:01:33.2]} 25. Nxf3
{[%clk 0:02:03.8]} 25... Ne4 {[%clk 0:01:32.6]} 26. Be2 {[%clk 0:01:56.5]} 26...
Rce8 {[%clk 0:01:17.3]} 27. Rg2 {[%clk 0:01:41.8]} 27... c4 {[%clk 0:00:57.7]}
28. bxc4 {[%clk 0:01:38.3]} 28... Na4 {[%clk 0:00:56.2]} 29. Qb4 {[%clk
0:01:25.6]} 29... Qd7 {[%clk 0:00:36]} 30. c5 {[%clk 0:01:13.3]} 30... Naxc5
{[%clk 0:00:10.4]} 31. Rxc5 {[%clk 0:01:07.6]} 31... Nxc5 {[%clk 0:00:11.3]} 32.
Qxc5 {[%clk 0:01:06.6]} 32... Rc8 {[%clk 0:00:05.3]} 33. Bc4+ {[%clk 0:00:55.8]}
33... Rf7 {[%clk 0:00:05.3]} 34. Bxf7+ {[%clk 0:00:52.8]} 34... Kxf7 {[%clk
0:00:06.2]} 35. Ne5+ {[%clk 0:00:47.8]} 35... Ke6 {[%clk 0:00:04.9]} 36. Nxd7
{[%clk 0:00:48]} 36... Kxd7 {[%clk 0:00:05.8]} 37. Qd5+ {[%clk 0:00:46.9]} 1-0